bitfinex/quotes_ETHUSD_20240910
["timestamp","ask_amount","ask_price","bid_price","bid_amount"]
[1725994807204,2.3475,2372.2,2372.1,0.01869]
[1725994807909,2.8975,2372.2,2372.1,0.01869]
[1725994808969,0.55,2372.2,2372.1,0.01869]
[1725994809165,3.0,2372.3,2372.1,0.01869]
[1725994809394,3.0,2372.4,2372.1,0.01869]
[1725994809605,0.55,2372.3,2372.1,0.01869]
[1725994809769,4.76534,2372.3,2372.1,0.01869]
[1725994810374,4.21549,2372.2,2372.1,0.01869]
[1725994810574,4.84981573,2372.2,2372.1,0.01869]
[1725994811021,0.55,2372.2,2372.1,0.01869]
[1725994811172,3.08432573,2372.4,2372.1,0.01869]
[1725994811373,4.21549,2372.2,2372.1,0.01869]
[1725994811577,9.06530573,2372.2,2372.1,0.01869]
[1725994811776,14.51120573,2372.2,2372.1,0.01869]
[1725994812538,3.55,2372.2,2372.1,0.01869]
[1725994812679,3.0,2372.3,2372.1,0.01869]
[1725994812877,3.0,2372.2,2372.1,4.23436]
[1725994813083,3.0,2372.2,2372.1,4.657796]
[1725994813289,0.08432573,2372.4,2372.1,0.01869]
[1725994813502,4.21541,2372.3,2372.1,0.01869]
[1725994813724,3.0,2372.2,2372.1,0.01869]
[1725994813926,3.0,2372.4,2372.1,0.01869]
[1725994814635,3.0,2372.4,2372.1,0.10299863]
[1725994814939,0.87799174,2372.7,2372.2,4.2154]
[1725994815147,14.06612,2372.8,2372.3,4.29959447]
[1725994815287,2.3616,2372.8,2372.3,4.29951447]
[1725994815588,2.3616,2372.8,2372.4,4.21505]
[1725994815794,2.3616,2372.8,2372.5,0.08428984]
[1725994815987,2.3616,2372.8,2372.5,4.29924984]
[1725994816404,2.3616,2372.8,2372.5,0.08428984]
[1725994816728,5.3616,2372.8,2372.5,0.08428984]
[1725994816928,0.55,2372.7,2372.5,0.08428984]
[1725994817101,3.0,2372.7,2372.5,5.15058282]
[1725994817307,2.4291,2373.1,2372.8,4.21441]
[1725994817524,4.21417,2373.0,2372.7,0.08427845]
[1725994817922,0.87799174,2373.3,2373.0,4.21404]
[1725994818233,4.21346,2373.4,2372.9,4.29851382]
[1725994818442,5.09145174,2373.4,2372.9,4.29851382]
[1725994818594,9.30492174,2373.4,2372.9,4.29851382]
[1725994819428,3.0,2373.3,2372.9,9.40697269]
[1725994819635,3.0,2373.3,2373.1,4.2138]
[1725994819840,2.4369644,2373.5,2373.1,0.08426649]
[1725994820132,2.4369644,2373.5,2373.1,4.29811649]
[1725994820298,0.88585614,2373.5,2373.2,4.21363]
[1725994820638,0.0078644,2373.5,2373.4,4.21336]
[1725994820934,0.0078644,2373.5,2373.4,8.42672]
[1725994823307,0.0078644,2373.5,2373.4,4.21336]
[1725994823512,4.2210544,2373.5,2373.1,0.94064254]
[1725994823693,8.4343944,2373.5,2372.9,4.21415]
[1725994824026,4.76338,2373.4,2372.8,4.21433]
[1725994824227,7.21369,2373.3,2373.0,0.08426501]
[1725994824414,0.55,2373.2,2373.0,0.08426501]
[1725994824738,0.55,2373.2,2372.6,1.407]
[1725994825044,2.4605,2373.1,2372.8,0.08427241]
[1725994825942,7.22398,2373.4,2372.9,4.21423]
[1725994826102,3.0,2373.3,2373.0,0.08427097]
[1725994826651,3.0,2373.3,2373.0,4.72810107]
[1725994826945,0.0078644,2373.5,2373.2,4.21361]
[1725994827250,0.0078644,2373.5,2373.4,4.21336]
[1725994827450,0.0078644,2373.5,2373.4,0.42976165]
[1725994827604,0.0078644,2373.5,2373.0,0.4298501]
[1725994827605,0.0078644,2373.5,2373.3,0.08425164]
[1725994828045,4.2211344,2373.5,2373.1,0.08426073]
[1725994828348,0.0078644,2373.5,2373.1,0.08426372]
[1725994828497,7.2210544,2373.5,2373.1,0.08426372]
[1725994828699,4.76337,2373.4,2373.1,0.08426372]
[1725994828962,4.76337,2373.4,2372.8,8.42859]
[1725994829167,4.76337,2373.4,2372.9,4.2984871]
[1725994829470,0.55,2373.4,2373.0,0.0842671]
[1725994829668,0.55,2373.4,2373.0,4.2983071]
[1725994829869,4.76339,2373.4,2373.0,5.19170861]
[1725994830072,0.55,2373.4,2373.0,5.19170861]
[1725994830572,0.55,2373.4,2373.0,5.19164861]
[1725994830725,0.55,2373.4,2373.0,0.97766861]
[1725994830726,4.76345,2373.4,2373.0,0.97766861]
[1725994831084,4.21367,2373.3,2372.6,4.21464]
[1725994831371,4.21367,2373.3,2372.8,4.2144]
[1725994831372,3.55,2373.2,2372.8,4.2144]
[1725994832371,7.76371,2373.2,2372.8,4.2144]
[1725994832571,7.76371,2373.2,2372.7,4.29887812]
[1725994832879,7.76371,2373.2,2372.8,0.08427806]
[1725994833079,12.46934182,2373.2,2372.7,4.2146]
[1725994833250,11.05210174,2373.2,2372.8,0.08427817]
[1725994833780,6.83839174,2373.2,2372.8,4.29866817]
[1725994833945,11.05213174,2373.2,2372.8,0.08427817]
[1725994834466,6.83839174,2373.2,2372.8,4.29865817]
[1725994834668,6.83839174,2373.2,2372.8,5.14997399]
[1725994834831,10.17417,2373.2,2372.8,0.93559399]
[1725994835032,3.0,2373.2,2372.8,0.93559399]
[1725994835233,0.87799174,2373.4,2373.2,4.21371]
[1725994835451,0.0078644,2373.5,2373.2,8.42733]
[1725994835690,0.0078644,2373.5,2373.3,0.08426118]
[1725994836191,4.21372,2373.2,2372.5,2.4116]
[1725994836396,0.96231747,2373.3,2372.6,4.21462]
[1725994836618,4.29814573,2373.2,2372.7,4.2145]
[1725994836747,0.87799174,2373.2,2372.8,4.29865791]
[1725994836952,0.55,2373.1,2372.8,4.29865791]
[1725994837189,0.55,2373.1,2372.8,5.2162359]
[1725994838568,3.87799174,2373.3,2373.1,4.21389]
[1725994838879,3.87799174,2373.4,2373.2,4.21368]
[1725994839051,3.87799174,2373.4,2373.2,5.33894249]
[1725994839254,0.88585614,2373.5,2373.2,5.33894249]
[1725994839480,0.88585614,2373.5,2373.2,1.12526249]
[1725994839685,0.88585614,2373.5,2373.3,0.08426379]
[1725994839686,0.0078644,2373.5,2373.3,0.08426379]
[1725994840158,4.2211344,2373.5,2373.2,0.08426025]
[1725994840364,5.09904614,2373.5,2373.2,0.08426025]
[1725994840615,4.21339,2373.4,2373.0,4.21392]
[1725994840858,0.87799174,2373.4,2373.1,0.08426844]
[1725994841160,5.09146174,2373.4,2372.9,4.29841446]
[1725994841314,0.55,2373.3,2372.9,5.0564637]
[1725994841662,2.3078,2373.2,2372.9,0.08426446]
[1725994841869,10.48394747,2373.2,2372.7,4.2145]
[1725994842167,5.64188174,2373.1,2372.6,8.42936]
[1725994842346,0.55,2373.1,2372.2,4.21535]
[1725994842553,6.49978,2372.9,2372.3,4.29959002]
[1725994842773,8.6105984,2372.9,2372.3,4.29944002]
[1725994843064,4.21468,2372.7,2372.3,0.08429002]
[1725994843224,4.21468,2372.7,2372.2,4.21548]
[1725994843425,4.21468,2372.7,2372.3,0.423417]
[1725994843751,0.55,2372.6,2372.3,0.08429333]
[1725994845059,5.64286174,2372.6,2372.1,4.23425]
[1725994845316,4.21545,2372.3,2372.1,0.01869]
[1725994845570,0.55,2372.2,2372.1,0.01869]
[1725994846860,0.87799174,2372.4,2372.1,0.01869]
[1725994847064,3.0,2372.4,2372.2,4.21548]
[1725994847271,3.87799174,2372.4,2372.3,4.64715707]
[1725994847422,0.87799174,2372.5,2372.3,4.64715707]
[1725994847621,1.3170691,2372.6,2372.3,4.73145355]
[1725994847622,0.87799174,2372.6,2372.3,4.73145355]
[1725994847935,3.87799174,2372.7,2372.4,0.89469336]
[1725994848131,8.09264174,2372.7,2372.4,0.89469336]
[1725994848441,3.87799174,2372.7,2372.3,4.29958648]
[1725994848764,8.09263174,2372.7,2372.3,0.08429648]
[1725994848962,0.55,2372.6,2372.3,0.08429648]
[1725994849265,0.55,2372.6,2372.3,5.15295213]
[1725994849614,0.55,2372.6,2372.3,0.93767213]
[1725994850484,0.55,2372.6,2372.3,5.15298213]
[1725994850962,0.55,2372.6,2372.3,0.93767213]
[1725994851130,4.76487,2372.6,2372.2,4.29973611]
[1725994851666,4.76487,2372.6,2372.1,8.53413619]
[1725994851667,5.64286174,2372.6,2372.1,8.53413619]
[1725994851961,4.21499,2372.5,2372.1,4.31854619]
[1725994852121,4.21499,2372.5,2372.1,0.01869]
[1725994852122,4.21549,2372.2,2372.1,0.01869]
[1725994852326,4.10364348,2372.4,2372.1,0.01869]
[1725994852327,5.17774747,2372.3,2372.1,0.01869]
[1725994852547,4.84981573,2372.2,2372.1,0.01869]
[1725994852844,9.32277816,2372.2,2372.1,0.01869]
[1725994853222,14.4162599,2372.2,2372.1,0.01869]
[1725994853576,17.14573726,2372.2,2372.1,0.01869]
[1725994853736,15.82866816,2372.2,2372.1,0.01869]
[1725994854274,17.58632873,2372.2,2372.1,0.01869]
[1725994854566,26.46331479,2372.2,2372.1,0.01869]
[1725994854770,24.25964816,2372.2,2372.1,0.01869]
[1725994855220,28.37762213,2372.2,2372.1,0.01869]
[1725994855665,24.25964816,2372.2,2372.1,0.01869]
[1725994856311,20.04415816,2372.2,2372.1,0.01869]
[1725994856535,22.24700689,2372.2,2372.1,0.01869]
[1725994856686,21.80582236,2372.2,2372.1,0.01869]
[1725994856871,17.5903306,2372.2,2372.1,0.01869]
[1725994857204,17.0403306,2372.2,2372.1,0.01869]
[1725994858406,17.5903306,2372.2,2372.1,0.01869]
[1725994858769,17.14944662,2372.2,2372.1,0.01869]
[1725994858967,17.5903306,2372.2,2372.1,0.01869]
[1725994859203,17.14944303,2372.2,2372.1,0.01869]
[1725994859933,17.5903306,2372.2,2372.1,0.01869]
[1725994860288,16.11736817,2372.2,2372.1,0.01869]
[1725994860558,5.64574912,2372.2,2372.1,0.01869]
[1725994860835,12.63848602,2372.2,2372.1,0.01869]
[1725994861192,13.07956817,2372.2,2372.1,0.01869]
[1725994861393,8.42287522,2372.2,2372.1,0.01869]
[1725994861634,7.98249693,2372.2,2372.1,0.01869]
[1725994861823,10.98249693,2372.2,2372.1,0.01869]
[1725994862189,10.10241573,2372.2,2372.1,0.01869]
[1725994862990,0.55,2372.2,2372.1,0.01869]
[1725994863803,4.84981573,2372.2,2372.1,0.01869]
[1725994864005,12.3167213,2372.2,2372.1,0.01869]
[1725994864225,12.29028693,2372.2,2372.1,0.01869]
[1725994864422,15.29028693,2372.2,2372.1,0.01869]
[1725994865043,14.41020573,2372.2,2372.1,0.01869]
[1725994865542,15.2898991,2372.2,2372.1,0.01869]
[1725994865837,22.20489032,2372.2,2372.1,0.01869]
[1725994866022,17.98940032,2372.2,2372.1,0.01869]
[1725994866222,16.66894083,2372.2,2372.1,0.01869]
[1725994866532,17.54852356,2372.2,2372.1,0.01869]
[1725994867771,16.66894083,2372.2,2372.1,0.01869]
[1725994867928,17.54859627,2372.2,2372.1,0.01869]
[1725994868562,17.98940032,2372.2,2372.1,0.01869]
[1725994870771,34.47088108,2372.2,2372.1,1e-05]
[1725994871087,34.47088108,2372.2,2371.6,0.0265544]
[1725994871088,23.59242,2371.7,2371.6,4.4e-06]
[1725994871372,23.59242,2371.7,2370.6,0.0265544]
[1725994871373,14.93171,2371.2,2370.6,0.0265544]
[1725994871582,16.25143186,2371.2,2370.6,0.0265544]
[1725994871790,12.65448,2370.7,2370.6,0.0265544]
[1725994872096,17.07015273,2370.7,2370.6,0.0265544]
[1725994872373,14.26622,2370.7,2370.6,0.0265544]
[1725994873378,7.76816,2370.7,2370.6,0.0265544]
[1725994873528,7.85248573,2370.7,2370.6,0.0265544]
[1725994874033,3.55,2370.7,2370.6,0.0265544]
[1725994874242,0.08432573,2371.1,2370.6,0.0265544]
[1725994874454,0.08432573,2371.1,2370.6,4.32923181]
[1725994874655,0.08432573,2371.1,2370.6,0.0265544]
[1725994874974,4.30188573,2371.1,2370.6,0.0265544]
[1725994875177,0.08432573,2371.1,2370.6,4.2448444]
[1725994875387,9.45649649,2371.5,2370.8,4.21786]
[1725994875388,4.30130573,2371.4,2370.8,4.21786]
[1725994875787,4.2172,2371.3,2370.7,4.30248744]
[1725994875940,0.08432573,2371.2,2370.7,4.30248744]
[1725994876142,1.96649649,2371.5,2370.8,2.55285453]
[1725994876344,0.08432573,2371.4,2371.0,4.21749]
[1725994876648,0.08432573,2371.4,2370.8,6.68637]
[1725994876649,4.30126573,2371.4,2370.8,6.68637]
[1725994876884,0.08432573,2371.4,2370.9,0.668637]
[1725994877241,0.08432573,2371.4,2370.9,4.886427]
[1725994877775,0.55,2371.3,2370.9,4.886427]
[1725994878343,0.55,2371.3,2370.9,0.668637]
[1725994879190,1.96649649,2371.5,2371.4,4.21691]
[1725994879380,7.5165544,2372.5,2372.1,4.21558]
[1725994879546,7.5165544,2372.5,2372.2,0.421558]
[1725994879547,0.0265544,2372.5,2372.2,0.421558]
[1725994879747,0.0265544,2372.5,2372.0,0.08430652]
[1725994879944,0.0265544,2372.5,2371.6,2.3767]
[1725994879945,4.21572,2372.1,2371.6,2.3767]
[1725994880143,0.421572,2372.0,2371.7,0.08432438]
[1725994880491,0.08432573,2372.2,2371.7,4.30060438]
[1725994880874,4.29991573,2372.2,2371.6,4.30088254]
[1725994881054,3.72999157,2372.1,2371.6,0.08432254]
[1725994881258,3.8143173,2372.1,2371.6,4.30085254]
[1725994881458,0.55,2372.0,2371.6,0.08432254]
[1725994881649,0.08432573,2371.9,2371.4,0.08432257]
[1725994881845,0.55,2371.8,2371.6,4.21654]
[1725994882277,0.55,2371.9,2371.7,4.21628]
[1725994882449,3.0,2372.1,2371.9,4.21602]
[1725994882670,7.29946573,2372.4,2371.8,4.2162]
[1725994882879,4.21533,2372.3,2371.8,4.2162]
[1725994883083,3.8142913,2372.2,2371.8,8.4323]
[1725994883393,0.08432573,2372.3,2371.8,4.2161]
[1725994883592,5.70098574,2372.3,2371.8,4.2161]
[1725994883779,3.08432573,2372.2,2371.8,4.2161]
[1725994884097,0.55,2372.1,2371.8,8.4322]
[1725994884547,0.55,2372.2,2371.8,4.2161]
[1725994884750,1.47508957,2372.2,2371.8,4.2161]
[1725994884979,1.5594153,2372.2,2371.8,4.2161]
[1725994885188,4.5594153,2372.2,2371.8,4.2161]
[1725994885868,4.47508957,2372.2,2371.8,4.2161]
[1725994886250,3.0,2372.1,2371.8,4.2161]
[1725994886450,1.47508957,2372.2,2371.8,4.2161]
[1725994886696,0.55,2372.2,2371.8,4.2161]
[1725994886850,4.30000573,2372.1,2371.6,4.21645]
[1725994887051,4.21606,2371.9,2371.4,4.21678]
[1725994887370,3.776606,2371.8,2371.4,4.21678]
[1725994887552,4.326606,2371.8,2371.4,8.43358]
[1725994887752,0.08432573,2371.7,2371.2,0.08432892]
[1725994888067,0.08432573,2371.7,2370.6,0.0265544]
[1725994888068,4.21799,2370.8,2370.6,0.0265544]
[1725994888269,0.08432573,2370.7,2370.6,0.0265544]
[1725994888480,4.21775,2371.0,2370.6,4.2447544]
[1725994888481,3.0,2370.9,2370.6,4.2447544]
[1725994888663,3.55,2370.9,2370.6,4.2447544]
[1725994888870,0.55,2370.9,2370.6,4.2447544]
[1725994889079,0.55,2371.0,2370.6,4.2447544]
[1725994889293,0.55,2371.0,2370.6,0.0265544]
[1725994889509,4.76763,2371.0,2370.6,0.0265544]
[1725994889808,7.30225573,2370.9,2370.6,0.0265544]
[1725994890009,0.55,2370.8,2370.6,0.0265544]
[1725994890895,0.55,2370.9,2370.6,0.0265544]
[1725994893612,0.63432573,2370.9,2370.6,0.0265544]
[1725994893785,4.21801,2370.8,2370.6,0.0265544]
[1725994893980,3.63432573,2370.7,2370.6,0.0265544]
[1725994895294,14.38024573,2370.7,2370.6,0.0265544]
[1725994895498,20.0364303,2370.7,2370.6,0.0265544]
[1725994895714,22.23896667,2370.7,2370.6,0.0265544]
[1725994895868,20.0364303,2370.7,2370.6,0.0265544]
[1725994896071,22.23996427,2370.7,2370.6,0.0265544]
[1725994896398,20.0364303,2370.7,2370.6,0.0265544]
[1725994896608,24.2545903,2370.7,2370.6,0.0265544]
[1725994896819,22.23957516,2370.7,2370.6,0.0265544]
[1725994897007,20.0364303,2370.7,2370.6,0.0265544]
[1725994897331,22.23853499,2370.7,2370.6,0.0265544]
[1725994898422,21.79773829,2370.7,2370.6,0.0265544]
[1725994898626,20.0364303,2370.7,2370.6,0.0265544]
[1725994899016,21.79779513,2370.7,2370.6,0.0265544]
[1725994899175,20.0364303,2370.7,2370.6,0.0265544]
[1725994899375,17.13890836,2370.7,2370.6,0.0265544]
[1725994899589,10.83903445,2370.7,2370.6,0.0265544]
[1725994899883,6.94961214,2370.9,2370.6,0.0265544]
[1725994900191,6.15357372,2370.9,2370.6,0.0265544]
[1725994900429,4.21799,2370.8,2370.6,0.0265544]
[1725994901096,6.15350372,2370.9,2370.6,0.0265544]
[1725994901439,1.93568372,2370.9,2370.6,0.0265544]
[1725994901783,6.15352372,2370.9,2370.6,0.0265544]
[1725994902816,3.0,2370.8,2370.6,0.0265544]
[1725994903024,0.55,2370.7,2370.6,0.0265544]
[1725994904334,4.85248573,2370.7,2370.6,0.0265544]
[1725994904566,7.85248573,2370.7,2370.6,0.0265544]
[1725994904917,3.63432573,2370.7,2370.6,0.0265544]
[1725994905653,7.85248573,2370.7,2370.6,0.0265544]
[1725994905952,9.0595343,2370.7,2370.6,0.0265544]
[1725994906158,13.2776943,2370.7,2370.6,0.0265544]
[1725994909279,7.85248573,2370.7,2370.6,0.0265544]
[1725994910060,12.07064573,2370.7,2370.6,0.0265544]
[1725994918487,14.41764573,2370.7,2370.6,0.0265544]
[1725994919202,21.097627,2370.7,2370.6,0.0265544]
[1725994919363,19.33626217,2370.7,2370.6,0.0265544]
[1725994919553,26.689463,2370.7,2370.6,0.0265544]
[1725994919900,26.689463,2370.7,2370.1,0.0265544]
[1725994919901,8.4381,2370.2,2370.1,0.0265544]
[1725994920189,13.13489769,2370.2,2370.1,0.0265544]
[1725994920398,13.24431614,2370.2,2370.1,0.0265544]
[1725994920552,17.08522633,2370.2,2370.1,0.0265544]
[1725994920960,12.86617633,2370.2,2369.4,2.3254]
[1725994921202,0.88063552,2370.0,2369.8,0.0262629]
[1725994921463,0.88063552,2370.3,2369.8,6.6836929]
[1725994921710,5.09907552,2370.6,2370.1,4.21913]
[1725994921868,0.08432573,2370.5,2370.1,4.21913]
[1725994922064,4.21896,2370.3,2369.9,0.66836929]
[1725994922417,0.08432573,2370.4,2370.1,4.21913]
[1725994922593,0.08432573,2370.4,2370.0,4.81216927]
[1725994922594,0.08432573,2370.4,2370.0,9.03142927]
[1725994922757,0.08432573,2370.5,2370.0,9.03145927]
[1725994922962,0.08432573,2370.5,2370.1,5.12227593]
[1725994923205,0.08432573,2370.5,2370.2,4.21894]
[1725994923457,0.08432573,2370.7,2370.3,4.21886]
[1725994923755,7.49,2371.0,2370.6,4.21834]
[1725994923909,0.08432573,2370.9,2370.5,6.52111]
[1725994924259,0.08432573,2370.9,2370.6,4.21833]
[1725994924567,0.08432573,2371.1,2370.5,3.44262637]
[1725994924855,4.21773,2371.0,2370.5,3.44262637]
[1725994925019,0.08432573,2370.9,2370.5,3.44262637]
[1725994925223,4.30222573,2370.9,2370.3,4.21885]
[1725994925443,7.30222573,2370.9,2370.3,4.21885]
[1725994925610,0.55,2370.8,2370.3,4.21885]
[1725994925808,0.08432573,2370.7,2370.4,4.21868]
[1725994926148,0.55,2370.6,2370.4,4.21868]
[1725994926350,0.55,2370.7,2370.4,4.21868]
[1725994926524,0.55,2370.7,2370.3,4.97966999]
[1725994926727,0.55,2370.7,2370.4,5.3872384]
[1725994927147,0.55,2370.7,2370.6,4.21834]
[1725994927469,5.97867857,2371.2,2370.5,4.2184]
[1725994927470,0.88063552,2371.3,2370.8,4.21796]
[1725994927611,0.08432573,2371.2,2370.9,0.658026]
[1725994927811,0.08432573,2371.2,2370.8,4.30222985]
[1725994928133,8.37063552,2371.4,2371.0,4.21752]
[1725994928441,8.45496125,2371.4,2371.0,4.21752]
[1725994928650,12.67200125,2371.4,2370.8,8.52011985]
[1725994928828,3.88063552,2371.3,2370.9,4.21777]
[1725994929023,3.08432573,2371.3,2370.9,4.21777]
[1725994929254,3.88063552,2371.3,2371.0,4.30183833]
[1725994929466,3.0,2371.3,2371.0,4.30183833]
[1725994929957,3.0,2371.3,2371.1,4.21733]
[1725994930476,0.88063552,2371.4,2371.1,8.43466]
[1725994930763,0.88063552,2371.4,2371.1,4.21732]
[1725994930764,1.43063552,2371.3,2371.1,4.21732]
[1725994930947,4.43063552,2371.3,2371.1,8.43468]
[1725994931116,3.55,2371.3,2371.2,4.21727]
[1725994931319,0.88063552,2371.4,2371.3,4.21709]
[1725994931535,0.88063552,2371.5,2371.2,4.30157569]
[1725994931734,0.88063552,2371.6,2371.4,4.21689]
[1725994932030,0.97059015,2371.7,2371.3,0.75793781]
[1725994932230,0.88063552,2371.4,2371.1,7.49515239]
[1725994932431,0.88063552,2371.4,2371.1,10.86057]
[1725994932643,0.88063552,2371.4,2371.1,2.4259]
[1725994932950,0.55,2371.3,2371.1,4.21745]
[1725994933132,1.43063552,2371.3,2371.1,4.21745]
[1725994933332,1.43063552,2371.3,2371.0,4.21754]
[1725994934032,1.43063552,2371.3,2371.1,4.21743]
[1725994934541,4.40527902,2371.4,2371.2,4.21727]
[1725994934542,3.88063552,2371.4,2371.2,4.21727]
[1725994934746,0.88063552,2371.5,2371.3,4.21709]
[1725994934974,0.88063552,2371.4,2371.3,4.21709]
[1725994935134,0.55,2371.4,2371.3,4.21709]
[1725994935317,3.55,2371.4,2371.3,4.21709]
[1725994935514,3.55,2371.4,2371.1,4.64748741]
[1725994935821,0.88063552,2371.3,2371.0,4.21761]
[1725994936433,0.63432573,2371.2,2370.8,6.50955]
[1725994936787,1.51496125,2371.2,2370.9,4.21767]
[1725994938923,1.51496125,2371.2,2370.8,4.21795]
[1725994939234,1.51496125,2371.2,2370.8,8.4358]
[1725994939758,1.51496125,2371.2,2370.8,4.21787]
[1725994940565,0.88063552,2371.1,2370.8,8.43573]
[1725994940741,0.88063552,2371.1,2370.8,4.21786]
[1725994940942,4.76766,2371.0,2370.6,4.2182]
[1725994941129,3.0,2370.9,2370.6,4.2182]
[1725994941333,3.88063552,2370.9,2370.6,4.2182]
[1725994942181,0.88063552,2370.9,2370.6,4.2182]
[1725994942391,4.2188,2370.4,2370.2,0.020634]
[1725994942535,10.93856573,2370.3,2370.2,0.020634]
[1725994942739,20.91396795,2370.3,2370.2,0.020634]
[1725994942989,22.70318903,2370.3,2370.2,0.020634]
[1725994943282,21.22659002,2370.3,2370.2,0.020634]
[1725994943434,19.21538121,2370.3,2370.2,0.020634]
[1725994943785,4.95880489,2370.3,2370.2,0.020634]
[1725994944137,1.51726212,2370.3,2370.2,0.020634]
[1725994944662,0.55,2370.3,2370.2,0.020634]
[1725994945174,1.43293639,2370.3,2370.2,0.020634]
[1725994945386,0.55,2370.3,2370.2,0.020634]
[1725994947459,1.43293639,2370.4,2370.2,0.020634]
[1725994948676,1.51726212,2370.4,2370.2,0.020634]
[1725994949047,0.88293639,2370.3,2370.2,0.020634]
[1725994949250,1.43293639,2370.3,2370.2,0.020634]
[1725994949484,0.55,2370.3,2370.2,0.020634]
[1725994949706,1.43293639,2370.3,2370.2,0.020634]
[1725994950286,8.65180639,2370.3,2370.2,0.020634]
[1725994950485,8.73613212,2370.3,2370.2,0.020634]
[1725994950687,4.51726212,2370.3,2370.2,0.020634]
[1725994951072,13.90540774,2370.3,2370.2,0.020634]
[1725994951401,15.67145659,2370.3,2370.2,0.020634]
[1725994952106,13.90540774,2370.3,2370.2,0.020634]
[1725994952276,15.67145659,2370.3,2370.2,0.020634]
[1725994953008,9.17723669,2370.3,2370.2,0.020634]
[1725994953210,4.43261959,2370.3,2370.2,0.020634]
[1725994953464,3.55,2370.3,2370.2,0.020634]
[1725994953597,0.55,2370.3,2370.2,0.020634]
[1725994955590,4.76887,2370.3,2370.2,0.020634]
[1725994955818,5.65148959,2370.3,2370.2,0.020634]
[1725994956332,15.51706722,2370.3,2370.2,0.020634]
[1725994956631,20.11584763,2370.3,2370.2,0.020634]
[1725994957190,22.32257027,2370.3,2370.2,0.020634]
[1725994957393,18.10370027,2370.3,2370.2,0.020634]
[1725994957939,17.66197241,2370.3,2370.2,0.020634]
[1725994958739,6.0924307,2370.3,2370.2,0.020634]
[1725994958945,5.73551847,2370.3,2370.2,0.020634]
[1725994959904,5.65119274,2370.3,2370.2,0.020634]
[1725994960133,12.95438847,2370.3,2370.2,0.020634]
[1725994960350,12.07206573,2370.3,2370.2,0.020634]
[1725994960636,14.47035709,2370.3,2370.2,0.020634]
[1725994961026,14.47035702,2370.3,2370.2,0.020634]
[1725994961222,14.9116043,2370.3,2370.2,0.020634]
[1725994961424,21.94318497,2370.3,2370.2,0.020634]
[1725994961605,24.39706019,2370.3,2370.2,0.020634]
[1725994961817,24.29734116,2370.3,2370.2,0.020634]
[1725994962043,28.51621116,2370.3,2370.2,0.020634]
[1725994963311,24.29734116,2370.3,2370.2,0.020634]
[1725994963628,20.17819019,2370.3,2370.2,0.020634]
[1725994965014,22.38241616,2370.3,2370.2,0.020634]
[1725994965210,22.38240873,2370.3,2370.2,0.020634]
[1725994965817,22.38217785,2370.3,2370.2,0.020634]
[1725994966944,20.17819019,2370.3,2370.2,0.020634]
[1725994967404,22.38194485,2370.3,2370.2,0.020634]
[1725994967855,22.606605,2370.3,2370.2,0.020634]
[1725994968211,26.61523018,2370.3,2370.2,0.020634]
[1725994968748,14.17195129,2370.3,2370.2,0.020634]
[1725994968914,9.40325913,2370.3,2370.2,0.020634]
[1725994969099,4.30319573,2370.3,2370.2,0.020634]
[1725994970135,8.52206573,2370.3,2370.2,0.020634]
[1725994970342,12.40325457,2370.3,2370.2,0.020634]
[1725994970923,12.95325457,2370.3,2370.2,0.020634]
[1725994971120,15.37974008,2370.3,2370.2,0.020634]
[1725994971505,19.38836526,2370.3,2370.2,0.020634]
[1725994971707,19.8290007,2370.3,2370.2,0.020634]
[1725994972220,24.0478707,2370.3,2370.2,0.020634]
[1725994972418,26.78907752,2370.3,2370.2,0.020634]
[1725994972631,31.44899733,2370.3,2370.2,0.020634]
[1725994972810,26.78886294,2370.3,2370.2,0.020634]
[1725994973004,26.34814273,2370.3,2370.2,0.020634]
[1725994973205,26.78886294,2370.3,2370.2,0.020634]
[1725994973873,13.28448225,2370.3,2370.2,0.020634]
[1725994974032,4.30319573,2370.3,2370.2,0.020634]
[1725994974411,0.08432573,2370.4,2370.2,0.020634]
[1725994974671,5.18405548,2370.4,2370.2,0.020634]
[1725994976638,3.0,2370.3,2370.2,0.020634]
[1725994977076,7.76887,2370.3,2370.2,0.020634]
[1725994977226,13.02262988,2370.3,2370.2,0.020634]
[1725994977433,13.90365963,2370.3,2370.2,0.020634]
[1725994977927,4.43102975,2370.3,2370.2,2.489834]
[1725994978270,3.55,2370.3,2370.2,2.489834]
[1725994978431,0.55,2370.3,2370.2,2.489834]
[1725994980463,1.43102975,2370.3,2370.2,0.020634]
[1725994980672,14.76948677,2370.3,2370.2,0.020634]
[1725994980965,18.21031725,2370.3,2370.2,0.020634]
[1725994981265,22.8720475,2370.3,2370.2,0.020634]
[1725994981471,20.66677073,2370.3,2370.2,0.020634]
[1725994981866,22.14017242,2370.3,2370.2,0.020634]
[1725994982065,20.66677073,2370.3,2370.2,0.020634]
[1725994982284,24.78647189,2370.3,2370.2,0.020634]
[1725994982774,24.78647189,2370.3,2369.3,2.3561629]
[1725994982775,4.21985,2369.8,2369.5,0.0264907]
[1725994982977,8.73752133,2369.7,2369.5,0.0619333]
[1725994983129,4.51753133,2369.7,2369.5,0.0619333]
[1725994983333,4.4332056,2369.7,2369.5,0.0619333]
[1725994983562,3.55,2369.7,2369.5,4.2822233]
[1725994983831,3.0,2369.6,2369.5,0.0619333]
[1725994984029,3.55,2369.6,2369.5,0.0619333]
[1725994984338,3.55,2369.6,2369.5,4.2822233]
[1725994984540,0.8832056,2369.7,2369.5,4.94343563]
[1725994984730,3.0,2369.8,2369.7,4.21994]
[1725994984934,0.8832056,2369.9,2369.8,4.21976]
[1725994985176,4.3248084,2370.0,2369.9,4.21958]
[1725994985177,0.8832056,2370.0,2369.9,4.21958]
[1725994985341,0.8832056,2370.0,2369.8,9.51675]
[1725994985544,0.88398044,2370.0,2369.9,4.21958]
[1725994985765,0.88398044,2370.0,2369.9,7.5410886]
[1725994986775,0.88398044,2370.2,2369.9,11.63410323]
[1725994986924,0.88398044,2370.3,2370.2,4.21905]
[1725994987128,0.88398044,2370.3,2370.0,7.71709032]
[1725994987347,0.88398044,2370.1,2370.0,2.3344]
[1725994987544,1.3248084,2370.1,2370.0,2.3344]
[1725994987869,1.3248084,2370.2,2370.0,2.3698426]